bitfinex-derivatives/quotes_BTCF0:USTF0_20210706
["timestamp","ask_amount","ask_price","bid_price","bid_amount"]
[1625582223886,5.065e-05,34119.0,34118.0,2.853927]
[1625582224002,0.47444635,34121.0,34118.0,2.853927]
[1625582224121,0.68933657,34123.0,34120.0,1.63907147]
[1625582224250,0.68933657,34123.0,34121.0,0.0882]
[1625582224479,0.50393657,34123.0,34121.0,0.74379296]
[1625582224599,0.01570134,34122.0,34121.0,0.74379296]
[1625582224719,0.01570134,34122.0,34121.0,1.07144228]
[1625582224962,0.01570134,34122.0,34121.0,0.32877544]
[1625582225082,0.0157013,34124.0,34121.0,0.32877544]
[1625582225202,0.0157013,34124.0,34121.0,1.31083405]
[1625582225323,0.01570138,34125.0,34121.0,1.31083405]
[1625582225684,0.0157013,34126.0,34122.0,0.98175749]
[1625582225803,0.0157013,34126.0,34122.0,1.98175749]
[1625582225926,1.20504826,34130.0,34122.0,1.98175749]
[1625582225928,0.01570031,34124.0,34122.0,1.98175749]
[1625582226164,0.01570015,34125.0,34122.0,1.98175749]
[1625582226285,0.01570015,34125.0,34123.0,0.98148579]
[1625582226405,0.72209173,34129.0,34123.0,0.98148579]
[1625582226527,0.48989173,34129.0,34123.0,0.98148579]
[1625582226646,0.41729173,34129.0,34123.0,0.98148579]
[1625582226769,0.057,34143.0,34123.0,0.98148579]
[1625582226770,0.057,34143.0,34124.0,2.14372204]
[1625582226771,1.2048642,34134.0,34124.0,2.14372204]
[1625582226889,1.2048642,34134.0,34128.0,3.5644]
[1625582227027,1.20333172,34137.0,34133.0,0.72172632]
[1625582227251,0.24057544,34151.0,34133.0,0.72172632]
[1625582227252,0.24057544,34151.0,34133.0,0.93679632]
[1625582227253,1.2032885,34141.0,34133.0,0.93679632]
[1625582227369,0.9852885,34141.0,34133.0,0.93679632]
[1625582227614,1.37496558,34148.0,34134.0,0.5]
[1625582227851,1.11281906,34162.0,34134.0,0.5]
[1625582227852,1.3747853,34154.0,34140.0,1.0]
[1625582227971,1.3747853,34154.0,34140.0,1.24482]
[1625582228331,0.24057544,34158.0,34140.0,1.24482]
[1625582228332,1.37478369,34151.0,34140.0,1.24482]
[1625582228451,1.37478369,34151.0,34140.0,0.24482]
[1625582228571,4.6446,34141.0,34140.0,0.24482]
[1625582228811,4.6446,34141.0,34133.0,0.72172632]
[1625582228812,4.87838,34141.0,34133.0,0.72172632]
[1625582229054,4.87838,34141.0,34140.0,0.72172632]
[1625582230136,0.23378,34141.0,34140.0,0.72172632]
[1625582230254,1.37259803,34144.0,34140.0,0.72172632]
[1625582230377,1.37254232,34147.0,34140.0,0.72172632]
[1625582230616,1.37256114,34146.0,34140.0,0.72172632]
[1625582230735,1.60456114,34146.0,34140.0,0.72172632]
[1625582231097,0.24057544,34141.0,34140.0,0.72172632]
[1625582231700,0.24057544,34141.0,34140.0,0.48115088]
[1625582231819,0.24057544,34141.0,34140.0,0.24057544]
[1625582232538,1.61177562,34141.0,34140.0,0.24057544]
[1625582232970,0.24057544,34141.0,34140.0,0.24057544]
[1625582233619,0.24057544,34141.0,34133.0,0.24057544]
[1625582233740,5.26657,34137.0,34133.0,0.24057544]
[1625582235062,0.48115088,34134.0,34127.0,0.24057544]
[1625582237105,0.24057544,34128.0,34127.0,0.24057544]
[1625582237706,0.48115088,34134.0,34127.0,0.24057544]
[1625582239090,0.48115088,34134.0,34133.0,0.24057544]
[1625582245824,0.78246088,34134.0,34127.0,0.24057544]
[1625582246006,0.79816332,34134.0,34127.0,0.24057544]
[1625582246489,0.01570251,34133.0,34127.0,0.24057544]
[1625582246609,0.01570251,34133.0,34115.0,0.057]
[1625582246731,0.01570251,34133.0,34107.0,1.30186151]
[1625582246851,1.38496831,34133.0,34108.0,0.057]
[1625582246971,1.36926158,34132.0,34108.0,0.057]
[1625582247091,0.48115088,34119.0,34118.0,1.18237544]
[1625582247210,0.79778088,34119.0,34118.0,0.24057544]
[1625582247933,6.00448088,34119.0,34118.0,0.24057544]
[1625582252564,0.79778088,34119.0,34118.0,0.24057544]
[1625582252815,0.48115088,34119.0,34118.0,0.24057544]
[1625582255568,0.69416088,34119.0,34118.0,0.24057544]
[1625582260078,0.48115088,34119.0,34118.0,0.24057544]
[1625582260196,0.48115088,34119.0,34118.0,0.57996544]
[1625582260797,0.48115088,34119.0,34118.0,0.74317972]
[1625582262241,0.48115088,34119.0,34118.0,0.57996544]
[1625582265247,0.48115088,34119.0,34118.0,0.82054088]
[1625582265787,0.48115088,34119.0,34118.0,1.79722397]
[1625582266448,0.48115088,34119.0,34118.0,2.93514281]
[1625582266568,0.48115088,34119.0,34118.0,2.93889457]
[1625582266687,0.41245379,34130.0,34118.0,4.23927351]
[1625582266929,0.24057544,34130.0,34124.0,0.16250121]
[1625582267170,0.01581591,34129.0,34124.0,0.16250121]
[1625582267289,0.01581591,34129.0,34125.0,0.16245676]
[1625582267409,0.01581591,34129.0,34125.0,0.38600676]
[1625582267531,0.01581591,34129.0,34125.0,0.22355]
[1625582267770,0.01581591,34129.0,34125.0,0.38600824]
[1625582269274,0.01581591,34129.0,34128.0,0.24057544]
[1625582271500,0.18775861,34129.0,34128.0,0.24057544]
[1625582271619,0.01581591,34129.0,34128.0,0.24057544]
[1625582272705,1.04701727,34129.0,34128.0,0.24057544]
[1625582273125,0.01581591,34129.0,34128.0,0.24057544]
[1625582274028,1.04698616,34129.0,34128.0,0.24057544]
[1625582274266,2.2505702,34129.0,34128.0,0.24057544]
[1625582274387,6.1297702,34129.0,34128.0,0.24057544]
[1625582274509,6.1297702,34129.0,34128.0,7.544e-05]
[1625582274630,6.1297702,34129.0,34123.0,0.24057544]
[1625582274752,6.3712002,34129.0,34123.0,0.24057544]
[1625582274989,0.01583834,34128.0,34123.0,0.24057544]
[1625582275291,0.24057544,34124.0,34123.0,0.24057544]
[1625582275831,0.25641522,34124.0,34123.0,0.24057544]
[1625582276316,1.28816237,34124.0,34123.0,0.24057544]
[1625582279555,2.49348674,34124.0,34123.0,0.24057544]
[1625582280520,0.25641522,34124.0,34118.0,0.24057544]
[1625582280639,0.25641522,34124.0,34116.0,0.24057544]
[1625582280760,1.03370782,34119.0,34117.0,0.16418962]
[1625582281001,1.03370782,34119.0,34114.0,0.98513771]
[1625582281121,2.2398282,34118.0,34111.0,1.22664264]
[1625582281242,2.53816033,34118.0,34111.0,1.22664264]
[1625582281365,0.48115088,34112.0,34111.0,0.24057544]
[1625582281483,0.48115088,34112.0,34110.0,0.98617126]
[1625582281605,3.5324,34111.0,34109.0,0.98643501]
[1625582281847,3.78163271,34111.0,34109.0,0.98643501]
[1625582282086,0.01584321,34110.0,34108.0,0.9873476]
[1625582282325,0.01584321,34110.0,34107.0,0.9872392]
[1625582282566,0.01584321,34110.0,34106.0,0.98751957]
[1625582283048,0.01584321,34110.0,34105.0,1.22829873]
[1625582283409,0.24057544,34106.0,34105.0,1.22829873]
[1625582283649,0.2564189,34106.0,34105.0,1.22829873]
[1625582283771,0.2564189,34106.0,34105.0,0.24057544]
[1625582286232,0.24057544,34106.0,34105.0,0.89705237]
[1625582286411,0.24057544,34106.0,34105.0,0.24057544]
[1625582286655,0.24057544,34106.0,34105.0,0.8964848]
[1625582286953,0.24057544,34106.0,34105.0,0.24057544]
[1625582289537,0.24057544,34106.0,34105.0,0.89779837]
[1625582290201,0.24057544,34106.0,34105.0,0.24057544]
[1625582291762,0.24057544,34106.0,34104.0,0.65717476]
[1625582291885,0.24057544,34106.0,34103.0,0.65771706]
[1625582292123,0.24057544,34106.0,34102.0,0.8983057]
[1625582292422,0.24057544,34106.0,34102.0,0.24057544]
[1625582292602,0.24057544,34106.0,34103.0,0.32893864]
[1625582293323,0.24057544,34106.0,34102.0,0.56960276]
[1625582293446,0.24057544,34104.0,34102.0,0.32902732]
[1625582293806,0.24057544,34104.0,34103.0,0.32904344]
[1625582297652,0.24057544,34104.0,34102.0,0.32947908]
[1625582298253,0.24057544,34104.0,34101.0,0.32960917]
[1625582299154,0.24057544,34104.0,34102.0,0.32965398]
[1625582299334,0.24057544,34104.0,34101.0,0.32975764]
[1625582300115,0.24057544,34104.0,34100.0,0.33003767]
[1625582300359,0.24057544,34104.0,34101.0,0.33017478]
[1625582302159,0.24057544,34104.0,34100.0,0.33021432]
[1625582302640,0.24057544,34104.0,34101.0,0.33028441]
[1625582303000,0.24057544,34104.0,34101.0,0.63994441]
[1625582303121,0.24057544,34104.0,34101.0,0.30966]
[1625582303300,0.24057544,34104.0,34101.0,0.64004885]
[1625582305161,0.24057544,34104.0,34101.0,0.33038885]
[1625582305642,0.24057544,34104.0,34100.0,0.33041182]
[1625582307385,0.01582275,34103.0,34100.0,0.33041182]
[1625582307626,0.24057544,34102.0,34099.0,0.57107896]
[1625582309130,0.01582306,34101.0,34099.0,0.57107896]
[1625582309732,0.01582306,34101.0,34099.0,0.24057544]
[1625582311535,0.2563985,34101.0,34099.0,0.24057544]
[1625582311836,0.0158249,34100.0,34099.0,0.24057544]
[1625582318391,0.0158249,34100.0,34096.0,0.8284495]
[1625582318634,0.0158249,34100.0,34094.0,1.2348607]
[1625582318635,0.0158249,34100.0,34094.0,0.57210293]
[1625582318874,3.6949,34095.0,34094.0,0.24057544]
[1625582319113,3.98032,34095.0,34094.0,0.24057544]
[1625582319234,3.99616243,34095.0,34094.0,0.24057544]
[1625582319594,4.23673787,34095.0,34094.0,0.24057544]
[1625582321698,4.23673787,34095.0,34093.0,0.33174314]
[1625582321699,0.54183787,34095.0,34093.0,0.33174314]
[1625582321821,0.25641787,34095.0,34093.0,0.33174314]
[1625582322061,0.24057544,34095.0,34094.0,0.8290341]
[1625582322180,0.24057544,34095.0,34094.0,1.0578141]
[1625582322300,0.24057544,34095.0,34094.0,0.72620046]
[1625582322421,0.24057544,34095.0,34094.0,0.72995344]
[1625582322542,0.24057544,34095.0,34094.0,1.06150686]
[1625582322663,0.25641725,34095.0,34094.0,1.06150686]
[1625582322961,0.24057544,34095.0,34094.0,0.72995344]
[1625582323562,0.24057544,34095.0,34094.0,1.06153226]
[1625582323682,0.24057544,34095.0,34094.0,1.3021077]
[1625582324103,0.24057544,34095.0,34094.0,0.97052888]
[1625582324343,0.24057544,34095.0,34094.0,1.63329105]
[1625582324589,0.24057544,34095.0,34094.0,2.62732453]
[1625582325728,0.24057544,34095.0,34094.0,2.86789997]
[1625582329092,0.24057544,34095.0,34094.0,4.02224647]
[1625582332037,0.24057544,34095.0,34094.0,5.34376291]
[1625582332761,0.24057544,34101.0,34094.0,5.34376291]
[1625582332885,0.34428961,34102.0,34094.0,5.34376291]
[1625582333005,0.34456464,34104.0,34094.0,6.34376291]
[1625582333124,0.34456464,34104.0,34095.0,0.00375166]
[1625582333243,0.34453956,34107.0,34103.0,2.14371517]
[1625582333363,0.33963956,34107.0,34104.0,0.0877]
[1625582333484,0.24057544,34108.0,34106.0,1.15349584]
[1625582333722,0.24057544,34108.0,34107.0,1.63431693]
[1625582333723,0.17597544,34108.0,34107.0,1.63431693]
[1625582333842,0.16797544,34108.0,34107.0,1.63431693]
[1625582334206,0.18376871,34108.0,34107.0,1.63431693]
[1625582335107,0.18376871,34108.0,34107.0,2.62447642]
[1625582335467,0.17116871,34108.0,34107.0,2.62447642]
[1625582335827,0.17116871,34108.0,34107.0,1.63431693]
[1625582336067,0.17116871,34108.0,34107.0,0.48115088]
[1625582336068,1.37775749,34108.0,34107.0,0.48115088]
[1625582336310,2.41191886,34108.0,34107.0,0.48115088]
[1625582336548,3.61845214,34108.0,34107.0,0.48115088]
[1625582336668,3.61845214,34108.0,34105.0,0.24057544]
[1625582336788,1.72499384,34106.0,34105.0,0.24057544]
[1625582336908,2.24256098,34106.0,34105.0,0.24057544]
[1625582337030,3.45008772,34106.0,34105.0,0.24057544]
[1625582337149,3.46588977,34106.0,34105.0,0.24057544]
[1625582337332,4.84593903,34106.0,34105.0,0.24057544]
[1625582337694,5.08651447,34106.0,34105.0,0.24057544]
[1625582342445,5.08651447,34106.0,34103.0,0.49808852]
[1625582342806,4.83691827,34104.0,34101.0,0.49843431]
[1625582343048,3.45501724,34102.0,34101.0,0.49843431]
[1625582343288,3.47082061,34102.0,34101.0,0.66447567]
[1625582343530,3.47082061,34102.0,34101.0,1.16284947]
[1625582343708,3.95197149,34102.0,34101.0,1.16284947]
[1625582343830,5.33392756,34102.0,34101.0,0.4983738]
[1625582344309,3.95197149,34102.0,34101.0,0.4983738]
[1625582345091,3.95197149,34102.0,34101.0,1.1631457]
[1625582346899,2.74278454,34102.0,34101.0,2.15987619]
[1625582349299,3.95236033,34102.0,34101.0,2.15987619]
[1625582350922,2.74278454,34102.0,34101.0,3.32213999]
[1625582351766,2.74278454,34102.0,34101.0,3.59660999]
[1625582352246,0.58352291,34102.0,34101.0,4.92331263]
[1625582352367,0.58352291,34102.0,34101.0,4.9270741]
[1625582352606,0.58352291,34102.0,34101.0,10.0342741]
[1625582353567,1.01547502,34102.0,34101.0,10.0342741]
[1625582353806,1.01547502,34102.0,34101.0,10.27484954]
[1625582354408,1.01547502,34102.0,34101.0,5.16764954]
[1625582354772,1.01547502,34102.0,34101.0,5.16388807]
[1625582354773,1.95737594,34102.0,34101.0,5.16388807]
[1625582354949,1.95737594,34102.0,34101.0,4.92331263]
[1625582355311,1.95737594,34102.0,34101.0,3.59660999]
[1625582355312,2.99437726,34102.0,34101.0,3.59660999]
[1625582355429,2.99437726,34102.0,34101.0,3.32213999]
[1625582355549,8.6148451,34102.0,34101.0,2.15987619]
[1625582357480,8.6148451,34102.0,34099.0,1.16541436]
[1625582357482,8.6148451,34102.0,34100.0,1.16642962]
[1625582357484,9.99768904,34102.0,34100.0,1.16642962]
[1625582357713,4.84024619,34101.0,34099.0,1.16674532]
[1625582357835,0.24057544,34100.0,34099.0,1.16674532]
[1625582357955,0.24057544,34100.0,34099.0,0.08338462]
[1625582357956,5.08100207,34100.0,34099.0,0.08338462]
[1625582358073,5.09681055,34100.0,34099.0,0.08338462]
[1625582358193,5.09681055,34100.0,34098.0,0.50030773]
[1625582358194,5.09681055,34100.0,34098.0,0.08341845]
[1625582358195,6.6527045,34100.0,34098.0,0.08341845]
[1625582358433,4.84090585,34099.0,34098.0,0.08341845]
[1625582358553,4.8567147,34099.0,34098.0,0.08341845]
[1625582358674,6.41275588,34099.0,34096.0,0.08350267]
[1625582358915,5.87858662,34097.0,34095.0,0.08351124]
[1625582359274,4.3225428,34096.0,34095.0,0.08351124]
[1625582359395,4.3383528,34096.0,34095.0,0.08351124]
[1625582359515,5.89364372,34096.0,34091.0,0.66794615]
[1625582359756,5.89364372,34096.0,34090.0,1.00191922]
[1625582359757,4.32061917,34092.0,34090.0,0.66815961]
[1625582359874,5.38098549,34092.0,34090.0,0.66815961]
[1625582359998,4.32087567,34091.0,34088.0,0.66872929]
[1625582360236,4.32094587,34089.0,34087.0,0.6688694]
[1625582360474,0.01581107,34091.0,34087.0,0.6688694]
[1625582360475,4.32098762,34088.0,34087.0,0.6688694]
[1625582360715,4.32098762,34088.0,34086.0,0.66916053]
[1625582360716,4.33679943,34088.0,34086.0,0.66916053]
[1625582360834,4.0702,34087.0,34086.0,0.66916053]
[1625582360956,8.40710773,34087.0,34085.0,0.66919307]
[1625582361136,2.93838476,34086.0,34085.0,0.66919307]
[1625582361255,2.93838476,34086.0,34083.0,1.17103094]
[1625582361379,2.93838476,34086.0,34083.0,1.00290801]
[1625582361498,2.95419824,34086.0,34083.0,0.17190801]
[1625582361618,1.38140049,34084.0,34079.0,0.2929]
[1625582361740,1.70156049,34084.0,34079.0,0.2929]
[1625582361860,1.70156049,34084.0,34071.0,0.24057544]
[1625582361862,1.70156049,34084.0,34071.0,1.33980667]
[1625582361865,2.10318413,34080.0,34071.0,1.33980667]
[1625582362098,1.38154523,34076.0,34068.0,1.33991303]
[1625582362218,1.62571523,34076.0,34068.0,1.33991303]
[1625582362339,1.38156261,34075.0,34067.0,1.58053903]
[1625582362758,5.0710792,34068.0,34067.0,1.58053903]
[1625582362881,5.3777392,34068.0,34067.0,1.58053903]
[1625582363903,5.85889008,34068.0,34067.0,1.58053903]
[1625582365344,0.78781088,34068.0,34067.0,1.58053903]
[1625582365464,0.24057544,34068.0,34067.0,1.58053903]
[1625582366004,0.24057544,34068.0,34067.0,3.08023672]
[1625582366725,0.24057544,34074.0,34067.0,3.08023672]
[1625582366843,0.24057544,34074.0,34067.0,3.36685672]
[1625582366964,0.24057544,34080.0,34073.0,1.3310758]
[1625582367204,0.24057544,34080.0,34072.0,1.49746027]
[1625582367205,0.24057544,34080.0,34076.0,1.32866935]
[1625582367444,0.24057544,34080.0,34076.0,1.64036935]
[1625582367925,0.24057544,34080.0,34079.0,0.24057544]
[1625582374957,0.24057544,34080.0,34070.0,0.057]
[1625582375079,0.24057544,34080.0,34069.0,1.33138917]
[1625582375196,0.24057544,34080.0,34067.0,0.24057544]
[1625582375197,0.51775544,34080.0,34067.0,1.57285015]
[1625582375436,4.9,34072.0,34067.0,0.24057544]
[1625582375556,5.14038,34072.0,34067.0,0.24057544]
[1625582375918,0.48115088,34068.0,34067.0,0.24057544]
[1625582381757,0.70645088,34068.0,34067.0,0.24057544]
[1625582391074,0.48115088,34068.0,34067.0,0.56565544]
[1625582397263,0.48115088,34068.0,34067.0,4.21035544]
[1625582397743,0.48115088,34068.0,34067.0,5.21637594]
[1625582398046,0.24057544,34068.0,34067.0,5.21637594]
[1625582398286,0.24057544,34077.0,34067.0,5.21637594]
[1625582398828,0.01585478,34076.0,34068.0,0.00375432]
[1625582399547,0.01585478,34076.0,34068.0,1.00738455]
[1625582399908,0.01585478,34076.0,34069.0,0.00375421]
[1625582400027,0.01585478,34076.0,34075.0,0.24057544]
[1625582400757,0.01585478,34076.0,34070.0,0.24057544]
[1625582401109,0.33970478,34076.0,34070.0,0.24057544]
[1625582401476,0.01585573,34075.0,34070.0,0.24057544]
[1625582401651,3.6046,34073.0,34070.0,0.24057544]
[1625582402011,0.01585638,34072.0,34070.0,0.24057544]
[1625582402133,0.24057544,34071.0,34070.0,0.24057544]
[1625582402613,0.25643189,34071.0,34070.0,0.24057544]
[1625582407844,0.25643189,34071.0,34067.0,0.24057544]
[1625582408083,0.24057544,34068.0,34067.0,0.24057544]
[1625582408325,0.52203544,34068.0,34067.0,0.24057544]
[1625582408444,0.53789326,34068.0,34063.0,0.9395]
[1625582408926,0.01585947,34067.0,34063.0,0.9395]
[1625582410130,0.48115088,34064.0,34063.0,0.9395]
[1625582410610,0.49701098,34064.0,34063.0,0.9395]
[1625582417521,1.5315509,34064.0,34063.0,0.9395]
[1625582418245,0.49701098,34064.0,34063.0,0.9395]
[1625582418481,0.48115088,34064.0,34063.0,0.9395]
[1625582418787,0.49700928,34064.0,34063.0,0.9395]
[1625582419386,1.53207284,34064.0,34063.0,0.9395]
[1625582421490,2.22225623,34064.0,34063.0,0.9395]
[1625582422875,2.20639783,34064.0,34063.0,0.9395]
[1625582423417,1.17133427,34064.0,34063.0,0.9395]
[1625582425819,1.18719218,34064.0,34063.0,0.9395]
[1625582426540,0.49700879,34064.0,34063.0,0.9395]
[1625582426662,0.48115088,34064.0,34063.0,0.9395]
[1625582426781,0.48115088,34064.0,34063.0,2.94543098]
[1625582427262,0.48115088,34064.0,34063.0,4.1332964]
[1625582427861,0.48115088,34064.0,34063.0,5.49128604]
[1625582428223,0.24057544,34064.0,34063.0,5.73186148]
[1625582428763,0.24057544,34064.0,34063.0,4.37387184]
[1625582429488,0.24057544,34064.0,34063.0,5.73473647]
[1625582430388,0.24057544,34064.0,34063.0,5.73849333]
[1625582432015,0.24057544,34064.0,34063.0,5.73473647]
[1625582433578,0.24057544,34064.0,34063.0,5.73849341]
[1625582434057,0.24057544,34064.0,34063.0,5.73473647]
[1625582434418,0.1729162,34066.0,34063.0,5.7384973]
[1625582434539,0.17291235,34067.0,34063.0,7.26956283]
[1625582434779,0.17291235,34067.0,34066.0,4.25270078]
[1625582434899,0.17291235,34067.0,34066.0,9.24110078]
[1625582435020,0.69113118,34069.0,34066.0,9.24110078]
[1625582435021,0.17290938,34068.0,34066.0,9.24110078]
[1625582435261,0.17290938,34068.0,34067.0,4.25139647]
[1625582435743,0.18875021,34068.0,34067.0,4.25139647]
[1625582436285,0.17290938,34068.0,34067.0,4.49197191]
[1625582437433,0.18875034,34068.0,34067.0,4.49197191]
[1625582437676,0.01584096,34068.0,34067.0,4.49197191]
[1625582437913,0.70706175,34068.0,34067.0,3.13152504]
[1625582441883,0.01584096,34068.0,34067.0,4.49050938]
[1625582442366,0.18879928,34068.0,34067.0,4.49050938]
[1625582442486,0.17295832,34068.0,34067.0,4.49050938]
[1625582442846,0.69133038,34069.0,34067.0,4.49050938]
[1625582443149,0.69133038,34069.0,34068.0,2.88657818]
[1625582443691,0.70717167,34069.0,34068.0,2.88657818]
[1625582443812,0.01584129,34069.0,34068.0,4.24503729]
[1625582444292,0.70714611,34069.0,34068.0,2.88657818]
[1625582444411,0.70714611,34069.0,34068.0,3.14109818]
[1625582444833,1.74404417,34069.0,34068.0,3.14109818]
[1625582445913,1.74404417,34069.0,34068.0,2.88657818]
[1625582446634,1.72820288,34069.0,34068.0,2.88657818]
[1625582446876,1.74404484,34069.0,34068.0,2.88657818]
[1625582447295,1.74404484,34069.0,34068.0,1.69798717]
[1625582447836,1.74404484,34069.0,34068.0,2.8872184]
[1625582448557,0.70714678,34069.0,34068.0,2.8872184]
[1625582448859,1.22569222,34069.0,34068.0,3.39729594]
[1625582450183,1.22569222,34069.0,34068.0,4.75727675]
[1625582450902,1.22569222,34069.0,34068.0,3.39729594]
[1625582451744,2.26260015,34069.0,34068.0,3.39729594]
[1625582452229,1.22569222,34069.0,34068.0,3.39729594]
[1625582452951,0.26079733,34070.0,34068.0,4.75739727]
[1625582453188,0.24057544,34071.0,34069.0,2.54925098]
[1625582453429,0.24057544,34071.0,34070.0,2.54880298]
[1625582453549,1.20961487,34074.0,34070.0,2.54880298]
[1625582453670,0.36150707,34071.0,34070.0,1.36313764]
[1625582453790,1.20957002,34075.0,34070.0,1.36313764]
[1625582453911,1.45011759,34076.0,34073.0,1.18888441]
[1625582454029,1.45011759,34076.0,34073.0,1.41006441]
[1625582454274,1.20953932,34077.0,34074.0,1.18845577]
[1625582454393,1.20953932,34077.0,34076.0,0.48115088]
[1625582454752,1.22529544,34077.0,34076.0,5.04445088]
[1625582455293,0.01575612,34077.0,34076.0,5.04445088]
[1625582455775,0.01575612,34077.0,34076.0,6.23744455]
[1625582455895,1.20946088,34079.0,34076.0,6.23744455]
[1625582456075,1.20899618,34081.0,34078.0,1.19169743]
[1625582456315,0.01575601,34080.0,34078.0,1.19169743]
[1625582456437,0.01575601,34080.0,34079.0,0.24057544]
[1625582456678,1.2247389,34081.0,34079.0,0.24057544]
[1625582456856,1.20898296,34081.0,34079.0,0.24057544]
[1625582457938,1.2091038,34080.0,34079.0,0.24057544]
[1625582458296,1.22481179,34080.0,34079.0,0.24057544]
[1625582460282,2.60633069,34080.0,34079.0,0.41099362]
[1625582460402,2.60633069,34080.0,34079.0,0.24057544]
[1625582460765,4.16075115,34080.0,34079.0,0.24057544]
[1625582461005,9.45282891,34080.0,34079.0,0.24057544]
[1625582462151,9.45282891,34080.0,34076.0,0.24057544]
[1625582462268,11.18008704,34080.0,34073.0,0.24057544]
[1625582462508,4.62719425,34074.0,34073.0,0.24057544]
[1625582462628,4.89929425,34074.0,34073.0,0.24057544]
[1625582462868,4.91500686,34074.0,34073.0,0.24057544]
[1625582464078,3.36026219,34074.0,34073.0,0.24057544]
[1625582464315,0.76896349,34074.0,34073.0,0.24057544]
[1625582464555,3.08818032,34074.0,34073.0,0.24057544]
[1625582466477,3.08818032,34074.0,34073.0,0.41138634]
[1625582466777,2.84760488,34074.0,34073.0,0.24057544]
[1625582466897,2.84760488,34074.0,34073.0,0.4113206]
[1625582467619,7.11610488,34074.0,34073.0,0.4113206]
[1625582467740,7.11610488,34074.0,34073.0,0.24057544]
[1625582467980,4.52478805,34074.0,34073.0,0.24057544]
[1625582468281,7.11608664,34074.0,34073.0,0.24057544]
[1625582468882,8.67086677,34074.0,34073.0,0.24057544]
[1625582469663,7.11608664,34074.0,34073.0,0.24057544]
[1625582470623,8.6710329,34074.0,34073.0,0.24057544]
[1625582471107,7.10037403,34074.0,34073.0,0.24057544]
[1625582471225,7.11602049,34074.0,34073.0,0.24057544]
[1625582471827,7.11602049,34074.0,34073.0,0.32817544]
[1625582472069,7.11602049,34074.0,34073.0,0.24057544]
[1625582478979,7.11602049,34074.0,34073.0,0.41100251]
[1625582482162,8.67206172,34074.0,34073.0,0.24057544]
[1625582482341,7.11602049,34074.0,34073.0,0.24057544]
[1625582482702,7.11602049,34074.0,34073.0,0.41100353]
[1625582482703,8.67241323,34074.0,34073.0,0.41100353]
[1625582483003,9.71006458,34074.0,34073.0,0.41100353]
[1625582484025,9.71006458,34074.0,34073.0,0.24057544]
[1625582486609,9.71006458,34074.0,34073.0,0.32757544]
[1625582486731,9.71006458,34074.0,34073.0,0.24057544]
[1625582489676,9.74474776,34074.0,34073.0,0.24057544]
[1625582510665,9.74474776,34074.0,34072.0,0.24057544]
[1625582510785,9.74474776,34074.0,34071.0,0.16944206]
[1625582510786,0.24057544,34073.0,34071.0,0.16944206]
[1625582510911,5.18852136,34072.0,34069.0,0.17045906]
[1625582511145,0.24057544,34073.0,34067.0,0.24057544]
[1625582511146,0.24057544,34073.0,34068.0,0.17059413]
[1625582511147,5.18860816,34070.0,34068.0,0.17059413]
[1625582511386,0.05021202,34071.0,34068.0,0.17059413]
[1625582511387,5.18888445,34069.0,34068.0,0.17059413]
[1625582511509,5.23909818,34069.0,34068.0,0.17059413]
[1625582512289,5.23909818,34069.0,34067.0,0.41152212]
[1625582512649,3.63189711,34068.0,34067.0,0.41152212]
[1625582512770,3.94453196,34068.0,34067.0,0.41152212]
[1625582512890,4.87697057,34068.0,34067.0,0.41152212]
[1625582513010,4.91166163,34068.0,34067.0,0.41152212]
[1625582513130,6.46814503,34068.0,34067.0,0.41152212]
[1625582513551,6.43345397,34068.0,34067.0,0.41152212]
[1625582513790,10.50255397,34068.0,34067.0,0.41152212]
[1625582513911,8.94607057,34068.0,34067.0,0.41152212]
[1625582514331,8.94607057,34068.0,34067.0,0.24057544]
[1625582515532,8.94607057,34068.0,34067.0,0.41160523]
[1625582516013,8.94607057,34068.0,34067.0,0.92480691]
[1625582516734,8.94607057,34068.0,34067.0,1.95170803]
[1625582517875,4.87697057,34068.0,34067.0,1.95170803]
[1625582517995,4.33928513,34068.0,34067.0,3.47525964]
[1625582518238,4.33928513,34068.0,34067.0,3.47912311]
[1625582518357,2.95572998,34068.0,34067.0,3.47912311]
[1625582518477,2.95572998,34068.0,34067.0,4.84815045]
[1625582518718,1.74509761,34068.0,34067.0,4.84815045]
[1625582518839,1.74509761,34068.0,34067.0,9.75652589]
[1625582519437,1.74509761,34068.0,34067.0,5.08872589]
[1625582519741,2.95770898,34068.0,34067.0,5.08872589]
[1625582519858,3.21299898,34068.0,34067.0,5.08872589]
[1625582519981,4.59883345,34068.0,34067.0,5.08872589]
[1625582520458,4.59883345,34068.0,34067.0,3.71969855]
[1625582520880,4.59883345,34068.0,34067.0,3.71583508]
[1625582523645,4.59883345,34068.0,34067.0,5.09054618]
[1625582524846,2.95770898,34068.0,34067.0,5.09054618]
[1625582528632,1.74509761,34068.0,34067.0,5.09054618]
[1625582528990,1.83259761,34068.0,34067.0,5.09054618]
[1625582529111,1.74509761,34068.0,34067.0,5.09054618]
[1625582531095,2.95753465,34068.0,34067.0,5.09054618]
[1625582531937,1.22193465,34068.0,34067.0,5.09054618]
[1625582532177,1.02353465,34068.0,34067.0,5.09054618]
[1625582532298,1.55880711,34073.0,34067.0,5.09054618]
[1625582532299,3.11726786,34100.0,34067.0,5.09054618]
[1625582532300,1.38549902,34074.0,34067.0,6.62544147]
[1625582532537,1.38534931,34077.0,34073.0,2.89631291]
[1625582532658,1.38534931,34077.0,34074.0,0.0873]
[1625582532781,1.73164336,34086.0,34074.0,0.0873]
[1625582532782,0.057,34093.0,34074.0,0.0873]
[1625582532783,0.057,34093.0,34076.0,1.36252295]
[1625582532784,1.38529378,34078.0,34076.0,1.36252295]
[1625582532899,1.38529378,34078.0,34077.0,0.48115088]
[1625582533017,1.38529378,34078.0,34077.0,1.84368372]
[1625582533259,1.40077063,34078.0,34077.0,6.06158372]
[1625582533500,0.01547685,34078.0,34077.0,6.06158372]
[1625582534402,0.01549415,34079.0,34077.0,6.06158372]
[1625582534644,0.01549415,34078.0,34077.0,6.06158372]
[1625582534763,0.01549415,34078.0,34077.0,4.69905088]
[1625582534885,1.38416013,34082.0,34077.0,4.69905088]
[1625582535002,1.38416013,34082.0,34077.0,6.05825284]
[1625582535122,0.01549391,34081.0,34077.0,6.05825284]
[1625582535242,1.39964653,34081.0,34078.0,1.35916572]
[1625582535362,1.39964653,34081.0,34079.0,0.0875]
[1625582535663,1.38415262,34081.0,34079.0,0.0875]
[1625582535787,1.38327488,34082.0,34079.0,0.0875]
[1625582536266,0.01548337,34081.0,34079.0,0.0875]
[1625582538007,1.38327488,34082.0,34079.0,0.0875]
[1625582538129,1.38257854,34083.0,34079.0,0.0875]
[1625582538369,1.38250435,34082.0,34079.0,0.0875]
[1625582538489,1.39798509,34082.0,34079.0,0.0875]
[1625582538609,1.39798509,34082.0,34077.0,4.93962632]
[1625582538728,1.38250435,34082.0,34077.0,4.93962632]
[1625582538969,1.38250435,34082.0,34081.0,0.24057544]
[1625582539330,1.39798557,34082.0,34081.0,0.24057544]
[1625582539572,1.39798557,34082.0,34081.0,0.3254675]
[1625582539812,2.95313687,34082.0,34081.0,0.24057544]